Cogmind - Beta 15 @@@ ROGUE MODE // 2025.09.28 @ 18:13:40 Player: winnking222 Result: Destroyed by D-53 Grenadier with Mini Grenade Launcher Performance ------------- Evolutions (0) 0 Regions Visited (2) 400 Robots Destroyed (26) 130 Value Destroyed (434) 434 Prototype IDs (2) 40 Alien Tech Used (0) 0 Bonus (0) 0 TOTAL SCORE: 1004 Bonus ------- None Cogmind --------- Core Integrity 0/250 Matter 300/300 Energy 33/100 System Corruption 2% Temperature Cool (37) Movement Core (400) Ox7 Location -10/Mines Parts ------- > --- POWER (1) -------- (None) > --- PROPULSION (2) --- (None) > --- UTILITY (2) ------ Large Storage Unit > --- WEAPON (2) ------- EMP Blaster > --- INVENTORY (15) --- Ion Engine Light Ion Engine Aluminum Leg Wheel Small Storage Unit Huge Storage Unit High-capacity Matter Pod (200) Seismic Detector Medium Laser Medium Laser Light Assault Rifle Peak State ------------ > --- POWER ------------ Ion Engine > --- PROPULSION ------- Light Treads Light Treads > --- UTILITY ---------- Huge Storage Unit Seismic Detector > --- WEAPON ----------- EM Shotgun EM Shotgun > --- INVENTORY -------- Aluminum Leg Wheel Small Storage Unit Seismic Detector EM Shotgun Medium Laser Medium Laser Light Assault Rifle EMP Blaster [Rating: 10] Favorites ----------- Power Ion Engine Engine Ion Engine Propulsion Light Treads Treads Light Treads Utility Seismic Detector Device Seismic Detector Storage Huge Storage Unit Weapon EM Shotgun Energy Gun EM Shotgun Ballistic Gun Light Assault Rifle Launcher EMP Blaster Build | -11 -10 -10 ------- Run | Yrd Mat Min Slots Evolved . | . . . Power . | . . . Propulsion . | . . . Utility . | . . . Weapon . | . . . Parts Attached 13 | 7 5 1 Power 1 | 1 . . Engine 1 | 1 . . Core . | . . . Reactor . | . . . Propulsion 2 | 2 . . Treads 2 | 2 . . Leg . | . . . Wheel . | . . . Hover . | . . . Flight . | . . . Utility 4 | 2 2 . Device 1 | 1 . . Storage 3 | 1 2 . Processor . | . . . Hackware . | . . . Protection . | . . . Artifact . | . . . Weapon 6 | 2 3 1 Energy Gun 4 | 1 3 . Energy Cannon . | . . . Ballistic Gun 1 | 1 . . Ballistic Cannon . | . . . Launcher 1 | . . 1 Special Weapon . | . . . Impact Weapon . | . . . Slashing Weapon . | . . . Piercing Weapon . | . . . Special Melee Weapon . | . . . Unidentified Prototypes . | . . . Parts Lost 7 | . 1 6 Power 1 | . . 1 Propulsion 2 | . . 2 Utility 1 | . . 1 Weapon 3 | . 1 2 Highest Loss Streak 6 | . 1 6 To Critical Strikes . | . . . Average Backups 10 | 5 10 11 Power 1 | . 1 2 Propulsion 2 | 3 2 2 Utility 2 | . 2 4 Weapon 4 | 1 4 3 Tool/Special . | . . . Unused Backups 10 | . 3 7 Power 3 | . 1 2 Propulsion 4 | . 2 2 Utility 2 | . . 2 Weapon 1 | . . 1 Tool/Special . | . . . Average Slot Usage (%) 100 | . 100 100 Engine 14 | . 14 14 Treads 28 | . 28 28 Device 14 | . 14 14 Storage 14 | . 14 14 Energy Gun 26 | . 26 28 Ballistic Gun 1 | . 1 . Peak Build Rating 10 | 7 10 10 Average Rating 9 | 5 9 9 On Entrance 5 | . 7 10 Naked Turns . | . . . Heaviest Build 92 | 14 92 32 Greatest Support 40 | 40 40 40 Greatest Overweight (x) 8 | . 2 8 Average Overweight (x) 1 | . 1 1 Largest Inventory Capacity 25 | 8 25 15 Average Capacity 20 | 7 21 15 Most Carried 12 | 8 12 12 Average Carried 10 | 5 10 11 Final Capacity 15 | 8 15 15 Final Carried 12 | 7 12 11 Class Distribution -------------------- 100% | Mutant Dominant Class ---------------- Mutant | -10/Materials Mutant | -10/Mines Resources | -11 -10 -10 ----------- Run | Yrd Mat Min Matter Collected 593 | 288 301 4 Remotely . | . . . Salvage Created 733 | 91 593 49 Parts 48 | 9 33 6 Haulers Intercepted 1 | . 1 . Recyclers Shooed . | . . . Parts Field Recycled . | . . . Retrieved Matter . | . . . Parts Self-Destructed . | . . . Prevented . | . . . Kills | -11 -10 -10 ------- Run | Yrd Mat Min Combat Hostiles Destroyed 16 | . 13 3 Guns 15 | . 12 3 AOE 1 | . 1 . Classes Destroyed 6 | 2 4 . Worker 2 | 1 1 . Tunneler 4 | 4 . . Hauler 1 | . 1 . Watcher 3 | . 3 . Swarmer 9 | . 6 3 Grunt 7 | . 7 . Best Kill Streak 5 | 3 5 3 Combat Bots Only 3 | . 3 3 Max Kills in Single Turn 2 | 1 1 2 Gunslinging 1 | . . 1 Exploded 1 | . 1 . Melee . | . . . Uniques/NPCs Destroyed . | . . . Combat | -11 -10 -10 -------- Run | Yrd Mat Min Hostile Shots Fired 75 | . 56 19 Missed 22 | . 20 2 Hits 53 | . 36 17 Projectile 53 | . 36 17 AOE 8 | . . 8 Critical Strikes 1 | . 1 . Damage Taken 897 | . 435 462 Core 273 | . 86 187 Absorbed by Shields . | . . . Core Remaining (%) 100 | 100 . . Volleys Fired 58 | 18 35 5 Largest 2 | 2 2 2 Hottest 90 | 70 90 90 Shots Fired 112 | 34 68 10 Gun 111 | 34 68 9 Cannon . | . . . Launcher 1 | . . 1 Special . | . . . Kinetic 18 | 18 . . Thermal 16 | 16 . . Explosive . | . . . Electromagnetic 78 | . 68 10 Robot Hit Streak 9 | 5 9 3 Robot Miss Streak 7 | 3 7 3 Penetration Max . | . . . Secondary Targets 2 | . 1 1 Max Gunslinging Chain 1 | . 1 1 Shots Hit Robots 70 | 18 45 7 Core Hits 47 | 7 34 6 Critical Kills . | . . . Critical Parts Destroyed . | . . . Critical Strikes 2 | 2 . . Burn 2 | 2 . . Melee Attacks . | . . . Impact . | . . . Slashing . | . . . Piercing . | . . . Sneak Attacks . | . . . Combat Hostiles . | . . . Follow-up Attacks . | . . . Damage Inflicted 1000 | 198 705 97 Guns 868 | 198 606 64 Cannons . | . . . Explosions 132 | . 99 33 Melee . | . . . Ramming . | . . . Kinetic 97 | 97 . . Thermal 200 | 101 99 . Explosive . | . . . Electromagnetic 703 | . 606 97 Impact . | . . . Slashing . | . . . Piercing . | . . . Highest Corruption 2 | . 2 2 Average Corruption 2 | . 2 2 Corruption Purged . | . . . Corruption Blocked . | . . . Effects 20 | . 19 1 Message Errors 3 | . 3 . Matter Fused 8 | . 8 . Heat Flow Errors 2 | . 1 1 Energy Discharges 5 | . 5 . Parts Fused 1 | . 1 . Data Loss (major) 1 | . 1 . Overload Shots . | . . . Overflow Damage 8 | . 8 . Projectiles . | . . . Explosions 8 | . 8 . Melee . | . . . Knockbacks . | . . . Impact . | . . . Kinetic . | . . . Secondary . | . . . Self-Inflicted Damage 41 | . 27 14 Shots 2 | . 1 1 Rammed . | . . . Targets Rammed . | . . . Kicked . | . . . Crushed . | . . . Highest Temperature 276 | 122 276 120 Average Temperature 76 | 42 89 61 Received Heat Transfer 93 | . 93 . Effects 3 | . 3 . Interference 3 | . 3 . Siege Activations . | . . . Martial Activations . | . . . Shielding Activations . | . . . Robots Disrupted . | . . . Combat Hostiles . | . . . Robots Corrupted . | . . . Combat Hostiles . | . . . Parts Fried 1 | . 1 . Impact Corruptions . | . . . Robots Melted . | . . . Combat Hostiles . | . . . Parts Melted 2 | 2 . . Heat Transferred 544 | 444 100 . Parts Sabotaged . | . . . Parts Stolen . | . . . Parts Stripped . | . . . Power Chain Reactions 2 | . 2 . Alert | -11 -10 -10 ------- Run | Yrd Mat Min Maximum Alert Level . | . . . Low Security (%) 100 | 100 100 100 Level 1 . | . . . Level 2 . | . . . Level 3 . | . . . Level 4 . | . . . Level 5 . | . . . High Security . | . . . Max Security . | . . . Peak Influence 135 | 15 135 89 Initial 19 | . . 19 Average 42 | 2 45 59 Influence Increases 484 | 25 389 70 Destroy 0b10 Robot/C 320 | . 260 60 Destroy 0b10 Robot/NC 50 | 25 25 . Destroy Leader 78 | . 68 10 Successful Hack 11 | . 11 . Destroy Structure 10 | . 10 . Lose Combat Pursuer 15 | . 15 . Influence Decreases 465 | 25 338 102 Entered New Map 32 | . . 32 Time Decay 363 | 25 328 10 Lost Part 70 | . 10 60 Squads Dispatched 3 | . 3 . Investigation 2 | . 2 . Extermination . | . . . Reinforcement 1 | . 1 . Assault . | . . . Garrison . | . . . Intercept . | . . . Searches Triggered . | . . . Construction Impeded . | . . . Haulers Reinforced . | . . . Active Scanning Responses . | . . . Cargo Convoy Interrupts . | . . . Stealth | -11 -10 -10 --------- Run | Yrd Mat Min Distress Signals 1 | . 1 . Communications Jammed . | . . . Distress Signals . | . . . Times Spotted 23 | . 17 6 Peak Tracking Total 4 | . 4 3 Tactical Retreats 1 | . 1 . Traps | -11 -10 -10 ------- Run | Yrd Mat Min Traps Triggered 2 | . 2 . Indirectly . | . . . Trap Hack Attempts . | . . . Triggered . | . . . Disarmed . | . . . Reprogrammed . | . . . Reused . | . . . Traps Extracted . | . . . Installed . | . . . Triggered . | . . . Machines | -11 -10 -10 ---------- Run | Yrd Mat Min Machines Disabled . | . . . Max in Single Turn . | . . . Machines Repaired . | . . . Machines Dismantled . | . . . Machines Sabotaged . | . . . Overloaded Fab Kills . | . . . Hacking | -11 -10 -10 --------- Run | Yrd Mat Min Machines Accessed 7 | . 7 . Terminals 7 | . 7 . Fabricators . | . . . Repair Stations . | . . . Recycling Units . | . . . Scanalyzers . | . . . Garrison Access . | . . . Total Hacks 16 | . 16 . Successful 10 | . 10 . Failed 6 | . 6 . Catastrophic 2 | . 2 . Database Lockouts . | . . . Manual 15 | . 15 . Terminals 16 | . 16 . Fabricators . | . . . Repair Stations . | . . . Recycling Units . | . . . Scanalyzers . | . . . Garrison Access . | . . . Terminal Hacks 1 | . 1 . Prototype ID Bank 1 | . 1 . Fabricator Hacks . | . . . Repair Station Hacks . | . . . Recycling Unit Hacks . | . . . Scanalyzer . | . . . Garrison Access Hacks . | . . . Unauthorized Hacks 9 | . 9 . Terminals 9 | . 9 . Botnet 3 | . 3 . Skim 6 | . 6 . Fabricators . | . . . Repair Stations . | . . . Recycling Units . | . . . Scanalyzers . | . . . Garrison Access . | . . . Data Cores Recovered . | . . . Used . | . . . Hacking Detections 5 | . 5 . Full Trace Events 2 | . 2 . Feedback Events . | . . . Feedback Blocked . | . . . Robot Schematics Acquired . | . . . Robots Built . | . . . Authchips . | . . . Time . | . . . Total Robot Build Rating . | . . . Part Schematics Acquired . | . . . Parts Built . | . . . Authchips . | . . . Time . | . . . Total Part Build Rating . | . . . Parts Repaired . | . . . Time . | . . . Parts Recycled . | . . . Recycled Matter . | . . . Retrieved Matter . | . . . Retrieved Components . | . . . Parts Scanalyzed . | . . . Part Schematics Acquired . | . . . Parts Damaged . | . . . Bothacking | -11 -10 -10 ------------ Run | Yrd Mat Min Used RIF Installer . | . . . Robots Hacked . | . . . Non-combat . | . . . Combat . | . . . Robot Hacks Applied . | . . . Relay Couplers Released . | . . . Fabnet Peak Effective % . | . . . Robots Rewired . | . . . Allies Hacked . | . . . Hacks Repelled . | . . . Allies | -11 -10 -10 -------- Run | Yrd Mat Min Total Allies . | . . . Largest Group . | . . . Highest-Rated Group . | . . . Highest-Rated Ally . | . . . Total Orders . | . . . Ally Attacks . | . . . Total Damage . | . . . Kills . | . . . Allies Corrupted . | . . . Allies Melted . | . . . Intel | -11 -10 -10 ------- Run | Yrd Mat Min Active Infowar (turns) 1940 | 18 1897 25 Seismic 1940 | 18 1897 25 Robot Analysis Total . | . . . Derelict Logs Recovered . | . . . Drone Launches . | . . . Drone Recoveries . | . . . Exploration | -11 -10 -10 ------------- Run | Yrd Mat Min Turns Passed 2125 | 180 1916 29 Spaces Moved 562 | 74 480 8 Core 11 | 10 . 1 Treads 551 | 64 480 7 Legs . | . . . Wheels . | . . . Hover . | . . . Flight . | . . . Fastest Speed 50 | 50 160 160 Average Speed 263 | 145 283 196 Slowest Speed 450 | 160 320 450 Overloaded Moves . | . . . Propulsion Burnouts . | . . . Robots Hopped . | . . . Potential Cave-ins . | . . . Cave-ins Triggered . | . . . Exploration Rate (%) 29 | 5 80 4 Regions Visited 2 Branch Regions 1 Pre-discovered Areas 2 | . 2 . Known Exits Taken . | . . . Unknown Exits Taken 2 | 1 1 . Scrap Searched . | . . . Spaces Dug . | . . . Terrain Destroyed 8 | . 8 . Melee . | . . . Projectile . | . . . AOE 8 | . 8 . Terrain Rammed . | . . . Walls Destroyed . | . . . Machines Disabled . | . . . Actions | -11 -10 -10 --------- Run | Yrd Mat Min Total 1100 | 116 970 14 Wait 443 | 5 438 . Move 560 | 73 479 8 Hop . | . . . Pick Up 22 | 13 9 . Fast Attach 1 | 1 . . Attach 8 | 6 1 1 Detach . | . . . Swap 4 | . 4 . Drop 4 | . 4 . Fire 58 | 18 35 5 Melee . | . . . Ram . | . . . Kick . | . . . Crush . | . . . Escape Stasis . | . . . Rewire . | . . . Trap . | . . . Miscellaneous . | . . . Route ------- -11/Scrapyard -10/Materials (discovered 6 exits: *Mat x3 / [*Min x2] / Sub) -10/Mines History --------- Turn | Location | Event 8 | -11/Scrapyard | Discovered new exit (range 15) 181 | -11/Scrapyard | Entered Materials 316 | -10/Materials | Build established: Mutant 645 | -10/Materials | Discovered new exit (range 10) 1373 | -10/Materials | Discovered new exit (range 11) 1507 | -10/Materials | Discovered new exit (range 14) 1513 | -10/Materials | Discovered new exit (range 16) 1700 | -10/Materials | Learned Storage non-interactive machine intel 1758 | -10/Materials | Identified exit to Subcaves 1758 | -10/Materials | Identified exit to Materials 1846 | -10/Materials | Learned location of Subcaves (-10) 2010 | -10/Materials | Learned Storage emergency access door positions 2097 | -10/Materials | Entered Mines 2098 | -10/Mines | Assembled infested the area 2103 | -10/Mines | Assisted by a Guerilla fighting off Assembled 2121 | -10/Mines | Core integrity fell below 50% 2125 | -10/Mines | Core integrity fell below 20% 2126 | -10/Mines | Destroyed by D-53 Grenadier with Mini Grenade Launcher Last Messages --------------- 02103_ A derelict emerges from the shadows: "You need to get out of here! I've been tracking a group of Assembled to figure out where they're coming from, and they're closing on this area, come on!" 02104_ HV Slug penetrates Wall. 02106_ S-10 Pest destroyed. 02106_ Switching to secondary target: S-10 Pest. 02106_ S-10 Pest destroyed. 02109_ Acquired 4 matter. 02120_ System corrupted: Heat flow error (+109). 02120_ C-30 ARC bursts open, deploying its payload. 02120_ D-53 Grenadier unfolds itself. 02120_ Lgt. Treads destroyed. 02120_ Ion Engine destroyed. 02120_ EM Shotgun destroyed. 02121_ 04-Y5A(h) suffers critical hit (Destroy). 02122_ Seismic Detector destroyed. 02123_ 04-Y5A(h) system corrupted by crushing effect. 02124_ 04-Y5A(h) system terminally corrupted. 02124_ Lgt. Treads destroyed. 02126_ EM Shotgun destroyed. Map ----- +----------------------------------------------------+ | ?????????????????????????????????? | | ?????????????????????????????????? | | ?????????????????????????????????? | | ?????????????????????????????????? | | ?????????????????????????????????? | | ?????????????????????????????????? | | ?????????????????????????????????? | | ?????????????????????????????????? | | ?????????????????????????????????? | | ?????????????????????????????????? | | ?????????????????????????????????? | | ?????????????????????????????????? | | ?????????????????????????????????? | | ?????????????????????????????????? | | ?????????????????????????????????? | | ?????????????????????????????????? | | ???????????????????????????####??? | | ??????????????????????????? #??? | | ??????????????????????????? #??? | | ???????????????????????#####a #??? | | ??????????????????????## # % #??? | | ?????????????????????## ##?? | | ?????????????????????# #?? | | ????????????????????## #?? | | ?????????????????#### #?? | | ?????????? a u d@d #?? | | ??????????????# ###### [#?? | | ?????????????????????# %#?? | | ?????????????????????# =;#? | | ?????????????????????## ########? | | ?????????????????????? ????????? | | ????????????????????? ????????? | | ????????????????????? ""????????? | | ???????????????????? ""????????? | | ??????????????????? ""????????? | | ???????????????????## ??????????? | | ????????????????????##???????????? | | ?????????????????????????????????? | | ?????????????????????????????????? | | ?????????????????????????????????? | | | | | | | | | | | | | | | | | | | | | +----------------------------------------------------+ Best States ------------- Heat Dissipation 25 Energy Generation 10 Energy Capacity 250 Matter Stores 300 Matter Capacity 300 Sight Range 16 Terrain Scan Density 10 Evasion (%) 50 Recoil Reduction 2 Item Schematics ----------------- None Robot Schematics ------------------ None Fabricated ------------ Nothing Repaired ---------- Nothing Alien Tech Used ----------------- None Achievements -------------- None Challenges ------------ None Game ------ Seed MassFocalArchive Manual? 0 Play Time 00:08:39 Cumulative 193.1 hours Start 2025.09.28 @ 17:51:47 End 2025.09.28 @ 18:13:40 Sessions 1 Manual Loads 0 Difficulty Rogue Special Mode None Game No. 262 Rogue 262 Adventurer 0 Explorer 0 Win Type - Total 3 Types 2/0/0/1/0/0/0/0/0/0 Lore% 73 Gallery% 72 Achievement% 62 Wizard Run 0 Options --------- Layout 0 ASCII 0 Keyboard 0 Movement Mouse Keybinds 0 Fullscreen 1 Font 16/SmallcapsGlow Map View 75x55 Zoom Use 0% Tactical HUD 1 Map Filters NONE Filters NONE Steam 1 RUN: cb5b975f-9691-4d88-8884-6c546235915b